Cogmind - Beta 15 @@@ ROGUE MODE // 2025.06.23 @ 18:47:32 Player: Mogwok Wargfriend Result: Destroyed by B-75 Beast with Heavy Plasma Cannon Performance ------------- Evolutions (4) 2000 Regions Visited (18) 3600 Robots Destroyed (258) 1290 Value Destroyed (7718) 7718 Prototype IDs (52) 1040 Alien Tech Used (0) 0 Bonus (1330) 1330 TOTAL SCORE: 16978 Bonus ------- High Alert Combat Kills 278 Follower Combat Kills 152 Aligned with FarCom 300 Met Data Miner 300 Met Imprinter 300 Cogmind --------- Core Integrity 0/850 Matter 290/300 Energy 100/100 System Corruption 1% Temperature Cool (12) Movement Core (100) Ox1 Location -5/Proximity Caves Parts ------- > --- POWER (1) -------- (None) > --- PROPULSION (4) --- (None) > --- UTILITY (8) ------ Hacking Suite > --- WEAPON (2) ------- Makeshift Spear CR-A16's Pointy Stick > --- INVENTORY (5) ---- Light Nuclear Core Micro Fission Core Advanced Heat Sink Medium Matter Pod (100) Powered Hammer Peak State ------------ > --- POWER ------------ Light Angular Momentum Engine > --- PROPULSION ------- Improved Medium Treads Armored Huge Wheel Xenon Bombardment Thruster > --- UTILITY ---------- Medium Storage Unit Jamming Amplifier Improved Light Armor Plating Hacking Suite Hacking Suite Improved Hacking Suite Experimental Hacking Suite Improved System Shield > --- WEAPON ----------- Thermic Laser Heavy Ion Cannon > --- INVENTORY -------- Light Fission Core Improved Heat Sink Advanced Signal Interpreter Improved Light Armor Plating Chronowheel Particle Gun Ion Cannon Heavy Flail Makeshift Spear CR-A16's Pointy Stick [Rating: 68] Favorites ----------- Power Deuterium Engine Engine Deuterium Engine Power Core Micro Fission Core Propulsion Armored Wheel Treads Medium Treads Leg Carbon-fiber Leg Wheel Armored Wheel Flight Unit Xenon Bombardment Thruster Utility Hacking Suite Device Improved Heat Sink Storage Medium Storage Unit Processor Improved Signal Interpreter Hackware Hacking Suite Protection Light Armor Plating Weapon Thermic Laser Energy Gun Thermic Laser Energy Cannon Heavy Ion Cannon Ballistic Gun Assault Rifle Ballistic Cannon Light Cannon Launcher Rocket Launcher Impact Weapon Heavy Mace Piercing Weapon CR-A16's Pointy Stick Build | -11 -10 -10 -9 -9 -9 -8 -8 -8 -7 -7 -7 -7 -6 -6 -6 -6 -6 -5 ------- Run | Yrd Mat Min Mat Min Exi Min Mat Sto Fac Low Low Zio Pro Fac Low Low Dat Pro Slots Evolved 8 | . . . 2 . . . 2 . 2 . . . . 2 . . . . Power . | . . . . . . . . . . . . . . . . . . . Propulsion 2 | . . . . . . . 1 . . . . . . 1 . . . . Utility 6 | . . . 2 . . . 1 . 2 . . . . 1 . . . . Weapon . | . . . . . . . . . . . . . . . . . . . Parts Attached 155 | 8 14 6 22 . . . 23 14 26 3 1 2 . 12 2 13 . 9 Power 19 | 2 2 . 2 . . . 3 3 3 . . . . 1 1 1 . 1 Engine 15 | 2 2 . 2 . . . 3 2 3 . . . . 1 . . . . Core 4 | . . . . . . . . 1 . . . . . . 1 1 . 1 Reactor . | . . . . . . . . . . . . . . . . . . . Propulsion 30 | 2 3 2 4 . . . 3 2 3 . 1 . . 4 . 5 . 1 Treads 2 | . . . . . . . . . . . . . . 1 . 1 . . Leg 6 | . . . 1 . . . . . 1 . . . . . . 3 . 1 Wheel 21 | 2 3 2 3 . . . 3 2 2 . 1 . . 2 . 1 . . Hover . | . . . . . . . . . . . . . . . . . . . Flight 1 | . . . . . . . . . . . . . . 1 . . . . Utility 62 | 2 4 1 10 . . . 9 4 12 2 . 1 . 7 1 5 . 4 Device 23 | 1 2 1 5 . . . 4 2 1 2 . . . . . 2 . 3 Storage 8 | 1 2 . . . . . 2 . 1 . . . . 1 . 1 . . Processor 6 | . . . . . . . 1 . 2 . . . . 2 . 1 . . Hackware 10 | . . . 1 . . . 1 1 3 . . 1 . 2 . . . 1 Protection 15 | . . . 4 . . . 1 1 5 . . . . 2 1 1 . . Artifact . | . . . . . . . . . . . . . . . . . . . Weapon 44 | 2 5 3 6 . . . 8 5 8 1 . 1 . . . 2 . 3 Energy Gun 25 | 1 4 2 5 . . . 2 5 4 . . . . . . 1 . 1 Energy Cannon 11 | . . . 1 . . . 4 . 3 1 . . . . . 1 . 1 Ballistic Gun 1 | 1 . . . . . . . . . . . . . . . . . . Ballistic Cannon 1 | . 1 . . . . . . . . . . . . . . . . . Launcher 1 | . . 1 . . . . . . . . . . . . . . . . Special Weapon . | . . . . . . . . . . . . . . . . . . . Impact Weapon 3 | . . . . . . . 2 . 1 . . . . . . . . . Slashing Weapon . | . . . . . . . . . . . . . . . . . . . Piercing Weapon 2 | . . . . . . . . . . . . 1 . . . . . 1 Special Melee Weapon . | . . . . . . . . . . . . . . . . . . . Unidentified Prototypes 9 | . . . 3 . . . 2 3 . . . 1 . . . . . . Parts Lost 62 | . 4 1 7 . . . 6 6 5 . 5 . . 1 2 8 . 17 Power 8 | . . . . . . . 2 2 1 . 1 . . . 1 1 . . Propulsion 18 | . 1 1 2 . . . 1 2 . . 2 . . . . 3 . 6 Utility 24 | . 1 . 4 . . . 2 1 2 . 2 . . 1 1 2 . 8 Weapon 12 | . 2 . 1 . . . 1 1 2 . . . . . . 2 . 3 Highest Loss Streak 9 | . 2 1 4 . . . 3 2 1 . 3 . . 1 2 2 . 9 To Critical Strikes . | . . . . . . . . . . . . . . . . . . . Average Backups 9 | 4 9 9 9 10 10 10 9 9 9 9 7 7 10 9 8 9 9 9 Power . | . . 1 . 1 1 1 . . 1 1 . . . 1 . . 1 1 Propulsion 1 | 3 4 2 1 2 2 2 1 . . 1 . . . . 1 . 2 . Utility 2 | . . 1 1 2 2 2 1 2 2 2 1 1 2 2 1 1 1 1 Weapon 3 | . 3 3 4 4 3 3 3 3 3 4 4 5 5 4 4 6 5 5 Tool/Special . | . . . . . . . . . . . . . . . . . . . Unused Backups 42 | . 4 3 6 . 1 1 6 3 7 . . . 2 3 . 2 . 4 Power 10 | . 1 . . . . 1 . 1 2 . . . 1 1 . 1 . 2 Propulsion 7 | . 2 1 . . . . 4 . . . . . . . . . . . Utility 9 | . 1 . 2 . . . . 1 3 . . . . 1 . . . 1 Weapon 13 | . . 1 4 . 1 . 2 1 1 . . . 1 1 . . . 1 Tool/Special 3 | . . 1 . . . . . . 1 . . . . . . 1 . . Average Slot Usage (%) 93 | . 99 99 98 100 100 100 98 98 92 92 84 82 84 88 93 90 100 86 Engine 7 | . 14 14 10 11 11 11 8 8 6 7 7 7 7 6 3 . . . Leg 1 | . . . . . . . . . . . . . . . . 13 20 14 Wheel 17 | . 27 27 21 22 22 22 26 25 14 15 12 7 7 8 20 8 6 1 Device 9 | . 13 14 13 11 11 11 10 8 6 7 7 7 7 5 6 6 6 13 Storage 8 | . 14 14 11 11 11 11 9 9 7 7 7 7 7 6 6 6 6 5 Processor 1 | . . . . . . . . 7 . . . . . . . . 6 4 Hackware 20 | . . . 5 11 11 11 17 19 29 30 25 28 30 32 33 21 20 14 Protection 6 | . . . 12 11 11 11 7 . 6 7 7 7 7 5 6 11 13 5 Energy Gun 9 | . 19 27 11 11 11 11 9 8 7 7 7 7 7 5 6 6 6 5 Energy Cannon 6 | . . . 9 11 11 11 6 8 6 7 7 6 7 5 6 5 6 5 Peak Build Rating 68 | 7 9 11 18 18 20 20 31 31 48 48 48 51 51 68 63 64 57 62 Average Rating 35 | 5 8 9 14 18 19 19 27 28 44 48 44 48 51 61 62 52 57 52 On Entrance 33 | . 7 9 10 18 18 20 20 29 29 47 48 41 51 51 62 63 57 57 Naked Turns . | . . . . . . . . . . . . . . . . . . . Heaviest Build 43 | 14 25 28 33 28 28 28 30 28 40 36 40 39 39 39 37 43 41 41 Greatest Support 52 | 20 26 26 26 24 24 24 36 34 40 40 40 28 28 40 52 52 47 47 Greatest Overweight (x) 10 | 1 2 1 10 2 1 1 2 1 2 . 1 1 1 1 . 3 . 2 Average Overweight (x) . | . . . 1 1 1 1 . . . . . 1 1 . . . . . Largest Inventory Capacity 10 | 8 10 10 10 10 10 10 10 10 10 10 10 10 10 10 10 10 10 10 Average Capacity 9 | 7 9 10 10 10 10 10 10 10 10 10 10 10 10 10 10 10 10 9 Most Carried 10 | 8 10 10 10 10 10 10 10 10 10 10 10 10 10 10 10 10 9 10 Average Carried 9 | 5 9 9 9 10 9 9 9 9 9 10 7 7 10 9 8 9 9 9 Final Capacity 10 | 8 10 10 10 10 10 10 10 10 10 10 10 10 10 10 10 10 10 5 Final Carried 10 | 8 10 9 10 10 10 10 10 10 10 10 6 10 10 9 10 9 9 5 Class Distribution -------------------- 56% | Hacker-Mutant 19% | Mutant 16% | Scavenger-Mutant 6% | Wizard-Mutant Dominant Class ---------------- Mutant | -10/Materials Mutant | -10/Mines Scavenger-Mutant | -9/Materials Mutant | -9/Mines Mutant | -9/Exiles Mutant | -8/Mines Scavenger-Mutant | -8/Materials Hacker-Mutant | -8/Storage Hacker-Mutant | -7/Factory Hacker-Mutant | -7/Lower Caves Hacker-Mutant | -7/Lower Caves Hacker-Mutant | -7/Zion Hacker-Mutant | -6/Proximity Caves Wizard-Mutant | -6/Factory Wizard-Mutant | -6/Lower Caves Hacker-Mutant | -6/Lower Caves Hacker-Mutant | -6/Data Miner Scavenger-Mutant | -5/Proximity Caves Resources | -11 -10 -10 -9 -9 -9 -8 -8 -8 -7 -7 -7 -7 -6 -6 -6 -6 -6 -5 ----------- Run | Yrd Mat Min Mat Min Exi Min Mat Sto Fac Low Low Zio Pro Fac Low Low Dat Pro Matter Collected 2902 | 313 346 71 325 . . . 344 197 527 105 67 52 . 165 60 120 . 210 Remotely . | . . . . . . . . . . . . . . . . . . . Salvage Created 11175 | 164 1322 212 1636 17 . 273 1393 942 2390 343 461 . 215 360 443 645 . 359 Parts 489 | 20 54 9 86 . . 14 49 57 100 12 10 . 15 15 15 13 . 20 Haulers Intercepted 14 | . 2 . 5 . . . 2 3 2 . . . . . . . . . Recyclers Shooed 10 | . 3 . 1 . . . 1 . 2 . . . . 3 . . . . Parts Field Recycled . | . . . . . . . . . . . . . . . . . . . Retrieved Matter . | . . . . . . . . . . . . . . . . . . . Parts Self-Destructed 78 | . . . . . . . . . . 10 14 . 13 . 12 10 . 19 Prevented 1 | . . . . . . . . . . . 1 . . . . . . . Kills | -11 -10 -10 -9 -9 -9 -8 -8 -8 -7 -7 -7 -7 -6 -6 -6 -6 -6 -5 ------- Run | Yrd Mat Min Mat Min Exi Min Mat Sto Fac Low Low Zio Pro Fac Low Low Dat Pro Combat Hostiles Destroyed 162 | . 16 3 21 1 . 5 16 10 35 6 5 . 7 5 8 10 . 14 Guns 85 | . 13 3 9 . . 3 8 7 17 2 3 . 6 1 2 2 . 9 Cannons 67 | . 2 . 11 1 . 2 7 2 16 4 1 . 1 3 6 6 . 5 AOE 1 | . 1 . . . . . . . . . . . . . . . . . Classes Destroyed 17 | 2 5 . 3 1 . 1 4 . 1 . . . . . . . . . Worker 22 | . 2 . 5 . . 1 4 3 5 . . . . 2 . . . . Builder 5 | . . . 2 . . . 3 . . . . . . . . . . . Tunneler 8 | 5 . . 2 . . . . . 1 . . . . . . . . . Hauler 14 | . 2 . 5 . . . 2 3 2 . . . . . . . . . Recycler 22 | 1 6 2 3 . . . 3 2 4 . . . . 1 . . . . Mechanic 2 | . . . . . . . 1 . 1 . . . . . . . . . Operator 5 | . . . 2 . . . 2 1 . . . . . . . . . . Watcher 18 | . 3 . 5 . . . 3 1 5 . . . . 1 . . . . Swarmer 37 | . 3 3 4 . . . . . 2 . 1 . 6 3 2 . . 13 Grunt 70 | . 13 . 11 . . 4 10 2 18 3 1 . 1 . 1 6 . . Brawler 4 | . . . . . . . 1 . 1 1 . . . . . 1 . . Duelist 11 | . . . . . . 1 . 1 1 1 2 . . . 3 2 . . Protector 1 | . . . . . . . 1 . . . . . . . . . . . Sentry 23 | . . . 6 . . . 3 6 2 1 1 . . 1 2 1 . . Hunter 4 | . . . . . . . 1 1 1 . . . . . . 1 . . Programmer 12 | . . . . . . . . . 10 . . . . 1 . . . 1 Assembled 1 | . . . . 1 . . . . . . . . . . . . . . Best Kill Streak 7 | 6 5 2 4 1 . 3 4 7 5 3 2 . 3 5 5 3 . 5 Combat Bots Only 5 | . 3 2 3 1 . 3 3 4 5 3 2 . 3 4 5 3 . 5 Max Kills in Single Turn 3 | 1 3 1 2 1 . 1 1 2 2 1 1 . 1 2 1 1 . 2 Gunslinging . | . . . . . . . . . . . . . . . . . . . Exploded 1 | . 1 . . . . . . . . . . . . . . . . . Melee . | . . . . . . . . . . . . . . . . . . . Uniques/NPCs Destroyed . | . . . . . . . . . . . . . . . . . . . Combat | -11 -10 -10 -9 -9 -9 -8 -8 -8 -7 -7 -7 -7 -6 -6 -6 -6 -6 -5 -------- Run | Yrd Mat Min Mat Min Exi Min Mat Sto Fac Low Low Zio Pro Fac Low Low Dat Pro Hostile Shots Fired 1204 | . 100 19 112 5 . 17 107 68 252 56 67 . 45 69 45 74 . 168 Missed 370 | . 22 5 28 . . 7 29 22 85 22 29 . 16 27 8 25 . 45 Hits 834 | . 78 14 84 5 . 10 78 46 167 34 38 . 29 42 37 49 . 123 Melee 20 | . . . . 2 . . . 1 4 . 2 . . . 10 1 . . Projectile 814 | . 78 14 84 3 . 10 78 45 163 34 36 . 29 42 27 48 . 123 Critical Strikes 19 | . . . 3 . . 2 6 . 3 1 . . . . 3 . . 1 Part Disruptions 1 | . . . . 1 . . . . . . . . . . . . . . Damage Taken 12064 | . 897 134 1027 94 . 160 1230 969 2187 296 588 . 439 423 975 800 . 1845 Core 2064 | . 207 26 137 . . 20 175 177 389 12 39 . 16 58 208 85 . 515 Absorbed by Shields 12 | . . . . . . . . . 12 . . . . . . . . . Regen/Repaired (Parts) 1910 | . . . 383 . . . . 107 429 . . 578 . 413 . . . . Core Remaining (%) 47 | 100 . 6 . . . 60 . 36 . . . . 34 . . . . . Volleys Fired 727 | 11 96 13 123 5 . 16 103 56 133 18 31 . 14 23 24 34 . 27 Largest 2 | 2 2 2 2 2 . 2 2 2 2 2 2 . 2 2 2 2 . 2 Hottest 154 | 60 90 106 121 116 . 116 124 129 153 150 150 . 150 150 150 150 . 154 Shots Fired 1430 | 22 185 25 244 10 . 32 201 110 264 31 64 . 28 46 48 67 . 53 Gun 828 | 22 163 24 134 5 . 16 108 55 134 13 33 . 14 23 24 34 . 26 Cannon 601 | . 22 . 110 5 . 16 93 55 130 18 31 . 14 23 24 33 . 27 Launcher 1 | . . 1 . . . . . . . . . . . . . . . . Special . | . . . . . . . . . . . . . . . . . . . Kinetic 64 | 11 53 . . . . . . . . . . . . . . . . . Thermal 1363 | 11 132 24 244 10 . 32 201 110 262 31 64 . 28 46 48 67 . 53 Explosive 1 | . . 1 . . . . . . . . . . . . . . . . Electromagnetic 2 | . . . . . . . . . 2 . . . . . . . . . Robot Hit Streak 19 | 8 10 1 10 2 . 5 19 9 11 10 13 . 5 8 15 10 . 9 Robot Miss Streak 10 | 2 5 2 5 2 . 2 4 3 6 2 6 . 6 3 2 4 . 10 Penetration Max . | . . . . . . . . . . . . . . . . . . . Secondary Targets 4 | . 4 . . . . . . . . . . . . . . . . . Max Gunslinging Chain 1 | . 1 . . . . . . . . . . . . . . . . . Shots Hit Robots 887 | 16 108 6 147 5 . 19 139 63 160 23 41 . 12 31 36 50 . 31 Core Hits 404 | 7 53 5 60 3 . 12 46 29 81 12 14 . 8 12 14 23 . 25 Critical Kills 2 | . . . . . . . . 1 . . 1 . . . . . . . Critical Parts Destroyed 1 | . . . . . . . 1 . . . . . . . . . . . Critical Strikes 65 | . 1 2 7 . . . 10 5 17 2 4 . 1 . 4 11 . 1 Burn 61 | . 1 2 7 . . . 9 4 17 2 3 . 1 . 4 11 . . Meltdown 2 | . . . . . . . . 1 . . 1 . . . . . . . Smash 1 | . . . . . . . 1 . . . . . . . . . . . Impale 1 | . . . . . . . . . . . . . . . . . . 1 Melee Attacks 42 | . . . . . . . 27 3 1 . . 3 . . . . . 8 Impact 31 | . . . . . . . 27 3 1 . . . . . . . . . Slashing . | . . . . . . . . . . . . . . . . . . . Piercing 11 | . . . . . . . . . . . . 3 . . . . . 8 Sneak Attacks 4 | . . . . . . . 4 . . . . . . . . . . . Combat Hostiles . | . . . . . . . . . . . . . . . . . . . Follow-up Attacks 2 | . . . . . . . . . . . . . . . . . . 2 Damage Inflicted 18345 | 192 1524 99 2538 85 . 326 2887 1267 4167 533 904 . 251 730 839 1212 . 791 Guns 9040 | 192 1140 98 1227 32 . 203 1387 682 1694 204 363 . 144 336 355 484 . 499 Cannons 8269 | . 199 . 1311 53 . 123 1143 562 2089 329 541 . 107 394 484 728 . 206 Explosions 554 | . 185 . . . . . . . 369 . . . . . . . . . Melee 443 | . . . . . . . 357 . . . . . . . . . . 86 Ramming 39 | . . 1 . . . . . 23 15 . . . . . . . . . Kinetic 527 | 113 414 . . . . . . . . . . . . . . . . . Thermal 17130 | 79 925 98 2538 85 . 326 2530 1244 4131 533 904 . 251 730 839 1212 . 705 Explosive . | . . . . . . . . . . . . . . . . . . . Electromagnetic 206 | . 185 . . . . . . . 21 . . . . . . . . . Impact 357 | . . . . . . . 357 . . . . . . . . . . . Slashing . | . . . . . . . . . . . . . . . . . . . Piercing 86 | . . . . . . . . . . . . . . . . . . 86 Highest Corruption 9 | . . . . . . . . 3 9 9 9 9 . . . . . 1 Average Corruption 4 | . . . . . . . . 2 3 9 9 9 . . . . . 1 Corruption Purged . | . . . . . . . . . . . . . . . . . . . Corruption Blocked . | . . . . . . . . . . . . . . . . . . . Effects 154 | . . . . . . . . 20 67 26 31 8 . . . . . 2 Message Errors 35 | . . . . . . . . 4 17 8 6 . . . . . . . Matter Fused 42 | . . . . . . . . . 21 9 8 3 . . . . . 1 Heat Flow Errors 15 | . . . . . . . . 2 4 5 3 1 . . . . . . Energy Discharges 18 | . . . . . . . . 3 8 1 5 1 . . . . . . Parts Fused 3 | . . . . . . . . . . . 3 . . . . . . . Data Loss (minor) 18 | . . . . . . . . 5 6 2 3 1 . . . . . 1 Data Loss (major) 7 | . . . . . . . . 1 5 . 1 . . . . . . . Misfires 9 | . . . . . . . . 2 5 . 2 . . . . . . . Alerts 2 | . . . . . . . . . . . . 2 . . . . . . Weapon Failures 5 | . . . . . . . . 3 1 1 . . . . . . . . Overload Shots . | . . . . . . . . . . . . . . . . . . . Overflow Damage 553 | . . . 37 . . . 290 . 199 7 13 . . . . 6 . 1 Projectiles 101 | . . . 37 . . . 15 . 22 7 13 . . . . 6 . 1 Explosions 177 | . . . . . . . . . 177 . . . . . . . . . Melee 275 | . . . . . . . 275 . . . . . . . . . . . Knockbacks 8 | . 6 . . . . . 2 . . . . . . . . . . . Impact 2 | . . . . . . . 2 . . . . . . . . . . . Kinetic 5 | . 5 . . . . . . . . . . . . . . . . . Secondary 1 | . 1 . . . . . . . . . . . . . . . . . Self-Inflicted Damage 18 | . . . . . . . . 11 7 . . . . . . . . . Shots . | . . . . . . . . . . . . . . . . . . . Rammed 4 | . . 1 . . . . . 2 1 . . . . . . . . . Targets Rammed 4 | . . 1 . . . . . 2 1 . . . . . . . . . Kicked . | . . . . . . . . . . . . . . . . . . . Crushed . | . . . . . . . . . . . . . . . . . . . Highest Temperature 400 | . 263 81 368 76 . 99 369 400 239 251 282 140 180 131 285 243 . 18 Average Temperature 75 | . 65 27 97 38 . 38 89 64 60 73 92 80 66 37 124 59 . 7 Received Heat Transfer 3321 | . 435 45 339 60 . 126 729 279 612 129 132 . . 36 45 258 . 96 Effects 8 | . . . 4 . . . 3 . 1 . . . . . . . . . Shutdowns 1 | . . . . . . . 1 . . . . . . . . . . . Energy Bleed 2 | . . . 1 . . . . . 1 . . . . . . . . . Interference 2 | . . . 2 . . . . . . . . . . . . . . . Matter Decay 1 | . . . . . . . 1 . . . . . . . . . . . Short Circuit 1 | . . . . . . . 1 . . . . . . . . . . . Damage (minor) 1 | . . . 1 . . . . . . . . . . . . . . . Siege Activations . | . . . . . . . . . . . . . . . . . . . Martial Activations . | . . . . . . . . . . . . . . . . . . . Shielding Activations . | . . . . . . . . . . . . . . . . . . . Robots Disrupted 1 | . 1 . . . . . . . . . . . . . . . . . Combat Hostiles . | . . . . . . . . . . . . . . . . . . . Robots Corrupted 4 | . . . . . . . 4 . . . . . . . . . . . Combat Hostiles . | . . . . . . . . . . . . . . . . . . . Parts Fried 7 | . . 1 . . . . 6 . . . . . . . . . . . Impact Corruptions 9 | . . . . . . . 9 . . . . . . . . . . . Robots Melted 13 | . . . 3 . . . 2 1 2 . 1 . . 1 . 3 . . Combat Hostiles 9 | . . . 1 . . . 1 1 2 . 1 . . 1 . 2 . . Parts Melted 101 | . 3 1 19 . . . 10 9 34 . 7 . . 4 3 9 . 2 Heat Transferred 39231 | 175 2387 407 6290 185 . 703 5650 2701 8934 1194 1979 . 648 1418 1979 3287 . 1294 Parts Sabotaged . | . . . . . . . . . . . . . . . . . . . Parts Stolen . | . . . . . . . . . . . . . . . . . . . Parts Stripped . | . . . . . . . . . . . . . . . . . . . Power Chain Reactions . | . . . . . . . . . . . . . . . . . . . Alert | -11 -10 -10 -9 -9 -9 -8 -8 -8 -7 -7 -7 -7 -6 -6 -6 -6 -6 -5 ------- Run | Yrd Mat Min Mat Min Exi Min Mat Sto Fac Low Low Zio Pro Fac Low Low Dat Pro Maximum Alert Level 3 | . . . 1 . . . . 1 3 . . . . . . . . . Low Security (%) 76 | 100 100 100 87 100 . 100 100 92 32 . . . . 100 . . . . Level 1 15 | . . . 12 . . . . 7 43 . . . . . . . . . Level 2 3 | . . . . . . . . . 12 . . . . . . . . . Level 3 3 | . . . . . . . . . 11 . . . . . . . . . Level 4 . | . . . . . . . . . . . . . . . . . . . Level 5 . | . . . . . . . . . . . . . . . . . . . High Security . | . . . . . . . . . . . . . . . . . . . Max Security . | . . . . . . . . . . . . . . . . . . . Peak Influence 887 | 15 161 102 313 45 . 65 95 215 887 . . . . 82 . . . . Initial 91 | . . 43 32 45 . . . . 91 . . . . 39 . . . . Average 134 | 2 94 34 116 27 . 8 25 45 323 . . . . 11 . . . . Influence Increases 6189 | 30 560 259 832 . . 155 593 506 1626 130 205 . 235 211 163 344 . 340 Destroy 0b10 Robot/C 3380 | . 320 140 420 . . 100 300 200 740 120 100 . 140 120 160 240 . 280 Destroy 0b10 Robot/NC 490 | 30 65 10 120 . . 5 95 50 90 . 5 . . 20 . . . . Destroy Leader 764 | . 80 20 140 . . 20 80 88 214 10 10 . 20 32 . 20 . 30 Allied During Kill 50 | . . 36 . . . . . . . . . . . 2 3 9 . . Successful Hack 356 | . 34 . 68 . . . 12 59 147 . . . . 36 . . . . Disable Machine 405 | . 30 30 15 . . 15 . 45 270 . . . . . . . . . Destroy Structure 114 | . 1 8 9 . . . 31 4 60 . . . . 1 . . . . Partial Spotted 45 | . . . 15 . . . 15 15 . . . . . . . . . . Lose Combat Pursuer 585 | . 30 15 45 . . 15 60 45 105 . 90 . 75 . . 75 . 30 Influence Decreases 6189 | 30 448 287 799 112 5 155 593 303 1234 499 431 . 172 274 138 342 27 340 Entered New Map 632 | . . 69 52 72 5 . . . 112 221 44 . . 24 . 6 27 . Time Decay 4544 | 30 408 208 547 40 . 155 533 253 752 278 340 . 172 220 108 243 . 257 Lost Part 493 | . 40 10 50 . . . 60 50 50 . 47 . . 10 20 73 . 83 Lost Ally 70 | . . . . . . . . . 20 . . . . 20 10 20 . . Purge Threat 450 | . . . 150 . . . . . 300 . . . . . . . . . Squads Dispatched 46 | . 4 3 3 . . . 6 1 24 . 1 . . 4 . . . . Investigation 9 | . 2 1 1 . . . . 1 2 . . . . 2 . . . . Extermination 12 | . . . . . . . . . 10 . . . . 2 . . . . Reinforcement 11 | . 2 . 2 . . . 3 . 4 . . . . . . . . . Assault 10 | . . 2 . . . . 2 . 5 . 1 . . . . . . . Garrison 4 | . . . . . . . 1 . 3 . . . . . . . . . Intercept . | . . . . . . . . . . . . . . . . . . . Searches Triggered . | . . . . . . . . . . . . . . . . . . . Construction Impeded 2 | . . . . . . . 1 . 1 . . . . . . . . . Haulers Reinforced 1 | . . . . . . . . . 1 . . . . . . . . . Active Scanning Responses . | . . . . . . . . . . . . . . . . . . . Cargo Convoy Interrupts . | . . . . . . . . . . . . . . . . . . . Stealth | -11 -10 -10 -9 -9 -9 -8 -8 -8 -7 -7 -7 -7 -6 -6 -6 -6 -6 -5 --------- Run | Yrd Mat Min Mat Min Exi Min Mat Sto Fac Low Low Zio Pro Fac Low Low Dat Pro Distress Signals 9 | . 2 . 3 1 . . 1 2 . . . . . . . . . . Communications Jammed . | . . . . . . . . . . . . . . . . . . . Distress Signals . | . . . . . . . . . . . . . . . . . . . Times Spotted 292 | . 32 14 45 5 . 6 32 17 54 6 17 . 11 8 8 20 . 17 Peak Tracking Total 14 | . 5 4 4 14 . 3 4 6 7 3 7 . 4 5 7 5 . 5 Tactical Retreats 28 | . 1 1 3 1 . 1 2 2 5 . 2 . 3 . . 5 . 2 Traps | -11 -10 -10 -9 -9 -9 -8 -8 -8 -7 -7 -7 -7 -6 -6 -6 -6 -6 -5 ------- Run | Yrd Mat Min Mat Min Exi Min Mat Sto Fac Low Low Zio Pro Fac Low Low Dat Pro Traps Triggered 7 | . 3 . . . . . 2 . 2 . . . . . . . . . Indirectly . | . . . . . . . . . . . . . . . . . . . Trap Hack Attempts . | . . . . . . . . . . . . . . . . . . . Triggered . | . . . . . . . . . . . . . . . . . . . Disarmed . | . . . . . . . . . . . . . . . . . . . Reprogrammed . | . . . . . . . . . . . . . . . . . . . Reused . | . . . . . . . . . . . . . . . . . . . Traps Extracted . | . . . . . . . . . . . . . . . . . . . Installed . | . . . . . . . . . . . . . . . . . . . Triggered . | . . . . . . . . . . . . . . . . . . . Machines | -11 -10 -10 -9 -9 -9 -8 -8 -8 -7 -7 -7 -7 -6 -6 -6 -6 -6 -5 ---------- Run | Yrd Mat Min Mat Min Exi Min Mat Sto Fac Low Low Zio Pro Fac Low Low Dat Pro Machines Disabled 27 | . 2 2 1 . . 1 . 3 18 . . . . . . . . . Max in Single Turn 7 | . 1 2 1 . . 1 . 1 7 . . . . . . . . . Garrison Access 2 | . . . . . . . 1 . 1 . . . . . . . . . Machines Repaired . | . . . . . . . . . . . . . . . . . . . Machines Dismantled . | . . . . . . . . . . . . . . . . . . . Machines Sabotaged . | . . . . . . . . . . . . . . . . . . . Overloaded Fab Kills . | . . . . . . . . . . . . . . . . . . . Hacking | -11 -10 -10 -9 -9 -9 -8 -8 -8 -7 -7 -7 -7 -6 -6 -6 -6 -6 -5 --------- Run | Yrd Mat Min Mat Min Exi Min Mat Sto Fac Low Low Zio Pro Fac Low Low Dat Pro Machines Accessed 83 | . 8 1 13 . 2 . 9 10 27 . . . . 9 . . 4 . Terminals 42 | . 6 . 9 . . . 7 6 10 . . . . 4 . . . . Fabricators 5 | . . . . . . . . . 4 . . . . 1 . . . . Repair Stations 12 | . 1 . 2 . . . . 2 5 . . . . 2 . . . . Recycling Units 10 | . 1 . 1 . . . 1 2 4 . . . . 1 . . . . Scanalyzers 4 | . . . 1 . . . 1 . 2 . . . . . . . . . Garrison Access 3 | . . . . . . . . . 2 . . . . 1 . . . . Total Hacks 302 | . 18 1 55 . 3 . 39 32 79 . . . . 50 . . 25 . Successful 227 | . 9 1 37 . 3 . 29 23 57 . . . . 43 . . 25 . Failed 72 | . 9 . 18 . . . 9 8 21 . . . . 7 . . . . Catastrophic 8 | . 2 . 3 . . . . 1 2 . . . . . . . . . Database Lockouts 3 | . . . . . . . 1 1 1 . . . . . . . . . Manual 156 | . 15 . 28 . 2 . 17 28 35 . . 2 . 29 . . . . Terminals 157 | . 14 . 31 . . . 27 21 35 . . . . 29 . . . . Fabricators 12 | . . . . . . . . . 9 . . . . 3 . . . . Repair Stations 51 | . 2 . 16 . . . . 4 17 . . . . 12 . . . . Recycling Units 25 | . 2 . 2 . . . 3 7 9 . . . . 2 . . . . Scanalyzers 20 | . . . 6 . . . 9 . 5 . . . . . . . . . Garrison Access 8 | . . . . . . . . . 4 . . . . 4 . . . . Terminal Hacks 103 | . 5 1 11 . 3 . 11 10 18 . . . . 19 . . 25 . Record 16 | . . . 1 . 2 . . . . . . . . 2 . . 11 . Part Schematic 18 | . . . 2 . . . . 2 3 . . . . 2 . . 9 . Robot Schematic 2 | . . . . . . . . . . . . . . . . . 2 . Robot Analysis 19 | . 4 . 2 . . . 1 5 2 . . . . 5 . . . . Prototype ID Bank 7 | . . . . . . . . . 3 . . . . 1 . . 3 . Open Door 1 | . . 1 . . . . . . . . . . . . . . . . Level Access Points 1 | . . . . . . . . 1 . . . . . . . . . . Branch Access Points 3 | . . . 1 . . . 1 . 1 . . . . . . . . . Emergency Access Points 2 | . . . . . . . . . 1 . . . . 1 . . . . Terminal Index 4 | . . . . . . . 1 1 1 . . . . 1 . . . . Fabricator Index 2 | . . . . . . . . . 1 . . . . 1 . . . . Recycling Unit Index 1 | . . . . . . . 1 . . . . . . . . . . . Garrison Index 1 | . . . . . . . . . . . . . . 1 . . . . Alert Level 5 | . . . 1 . . . 2 . 1 . . . . 1 . . . . Unreport Threat 3 | . . . 1 . . . . . 2 . . . . . . . . . Locate Traps 10 | . 1 . 3 . . . 2 1 2 . . . . 1 . . . . Dispatch Records 1 | . . . . . . . 1 . . . . . . . . . . . Maintenance Status 1 | . . . . . . . . . . . . . . 1 . . . . Investigation Status 1 | . . . . . . . 1 . . . . . . . . . . . Recall Investigation 2 | . . . . . . . . . 1 . . . . 1 . . . . Hauler Manifests 1 | . . . . . . . . . . . . . . 1 . . . . Zone Layout 1 | . . . . . . . 1 . . . . . . . . . . . Proto ID Catalog 1 | . . . . . 1 . . . . . . . . . . . . . Fabricator Hacks 9 | . . . . . . . . . 6 . . . . 3 . . . . Network Status 4 | . . . . . . . . . 3 . . . . 1 . . . . Load Schematic 2 | . . . . . . . . . 1 . . . . 1 . . . . Build 3 | . . . . . . . . . 2 . . . . 1 . . . . Repair Station Hacks 43 | . . . 13 . . . . 4 14 . . . . 12 . . . . Scan Component 22 | . . . 7 . . . . 2 7 . . . . 6 . . . . Repair 21 | . . . 6 . . . . 2 7 . . . . 6 . . . . Recycling Unit Hacks 10 | . . . 1 . . . 2 3 3 . . . . 1 . . . . Report Inventory 7 | . . . 1 . . . 1 2 2 . . . . 1 . . . . Retrieve Components 3 | . . . . . . . 1 1 1 . . . . . . . . . Scanalyzer 19 | . . . 6 . . . 9 . 4 . . . . . . . . . Insert Component 10 | . . . 3 . . . 4 . 3 . . . . . . . . . Analyze 9 | . . . 3 . . . 5 . 1 . . . . . . . . . Garrison Access Hacks 1 | . . . . . . . . . 1 . . . . . . . . . Seal Access 1 | . . . . . . . . . 1 . . . . . . . . . Unauthorized Hacks 41 | . 3 . 6 . . . 7 6 11 . . . . 8 . . . . Terminals 22 | . 2 . 5 . . . 6 2 3 . . . . 4 . . . . Track 1 | . . . . . . . . . . . . . . 1 . . . . Assimilate 5 | . . . 2 . . . 1 1 . . . . . 1 . . . . Botnet 8 | . . . 2 . . . 3 . 2 . . . . 1 . . . . Operators 8 | . 2 . 1 . . . 2 1 1 . . . . 1 . . . . Fabricators . | . . . . . . . . . . . . . . . . . . . Repair Stations 1 | . . . . . . . . . 1 . . . . . . . . . Mechanics 1 | . . . . . . . . . 1 . . . . . . . . . Recycling Units 13 | . 1 . 1 . . . 1 4 5 . . . . 1 . . . . Monitor 2 | . . . . . . . . 1 1 . . . . . . . . . Reject 9 | . 1 . 1 . . . 1 2 3 . . . . 1 . . . . Mask 2 | . . . . . . . . 1 1 . . . . . . . . . Scanalyzers . | . . . . . . . . . . . . . . . . . . . Garrison Access 5 | . . . . . . . . . 2 . . . . 3 . . . . Reprogram 1 | . . . . . . . . . . . . . . 1 . . . . Intercept 2 | . . . . . . . . . 1 . . . . 1 . . . . Watchers 2 | . . . . . . . . . 1 . . . . 1 . . . . Data Cores Recovered . | . . . . . . . . . . . . . . . . . . . Used . | . . . . . . . . . . . . . . . . . . . Hacking Detections 65 | . 7 . 13 . . . 8 10 20 . . . . 7 . . . . Full Trace Events 5 | . . . 1 . . . . 1 2 . . . . 1 . . . . Feedback Events . | . . . . . . . . . . . . . . . . . . . Feedback Blocked . | . . . . . . . . . . . . . . . . . . . Robot Schematics Acquired 5 | . . . . . . . . . . . . 3 . . . . 2 . Robots Built 2 | . . . . . . . . . 2 . . . . . . . . . Authchips . | . . . . . . . . . . . . . . . . . . . Time 58 | . . . . . . . . . 58 . . . . . . . . . Total Robot Build Rating 6 | . . . . . . . . . 6 . . . . . . . . . Part Schematics Acquired 42 | . . . 5 . . . 4 2 4 . . 16 . 2 . . 9 . Parts Built 2 | . . . . . . . . . 1 . . . . 1 . . . . Authchips . | . . . . . . . . . . . . . . . . . . . Time 94 | . . . . . . . . . 47 . . . . 47 . . . . Total Part Build Rating 10 | . . . . . . . . . 5 . . . . 5 . . . . Parts Repaired 21 | . . . 6 . . . . 2 7 . . . . 6 . . . . Time 558 | . . . 155 . . . . 57 225 . . . . 121 . . . . Parts Recycled . | . . . . . . . . . . . . . . . . . . . Recycled Matter . | . . . . . . . . . . . . . . . . . . . Retrieved Matter . | . . . . . . . . . . . . . . . . . . . Retrieved Components 24 | . . . . . . . 10 10 4 . . . . . . . . . Parts Scanalyzed 9 | . . . 3 . . . 4 . 2 . . . . . . . . . Part Schematics Acquired 8 | . . . 3 . . . 4 . 1 . . . . . . . . . Parts Damaged . | . . . . . . . . . . . . . . . . . . . Bothacking | -11 -10 -10 -9 -9 -9 -8 -8 -8 -7 -7 -7 -7 -6 -6 -6 -6 -6 -5 ------------ Run | Yrd Mat Min Mat Min Exi Min Mat Sto Fac Low Low Zio Pro Fac Low Low Dat Pro Used RIF Installer . | . . . . . . . . . . . . . . . . . . . Robots Hacked . | . . . . . . . . . . . . . . . . . . . Non-combat . | . . . . . . . . . . . . . . . . . . . Combat . | . . . . . . . . . . . . . . . . . . . Robot Hacks Applied . | . . . . . . . . . . . . . . . . . . . Relay Couplers Released . | . . . . . . . . . . . . . . . . . . . Fabnet Peak Effective % . | . . . . . . . . . . . . . . . . . . . Robots Rewired 2 | . . . . . . . . . . . . . . . 2 . . . Allies Hacked . | . . . . . . . . . . . . . . . . . . . Hacks Repelled . | . . . . . . . . . . . . . . . . . . . Allies | -11 -10 -10 -9 -9 -9 -8 -8 -8 -7 -7 -7 -7 -6 -6 -6 -6 -6 -5 -------- Run | Yrd Mat Min Mat Min Exi Min Mat Sto Fac Low Low Zio Pro Fac Low Low Dat Pro Total Allies 14 | . . 4 . . . . 1 . 2 . . . . 4 2 . . 1 Largest Group 4 | . . 4 . . . . 1 . 2 . . . . 4 2 2 . 1 Highest-Rated Group 113 | . . 71 . . . . 10 . 42 . . . . 113 58 58 . 96 Highest-Rated Ally 96 | . . 31 . . . . 10 . 21 . . . . 29 29 29 . 96 Total Orders 3 | . . . . . . . . . . . . . . 2 1 . . . STAY 1 | . . . . . . . . . . . . . . 1 . . . . ROAM 1 | . . . . . . . . . . . . . . . 1 . . . FOLLOW 1 | . . . . . . . . . . . . . . 1 . . . . Ally Attacks 78 | . . 18 . . . . . . 11 . . . . 19 2 21 . 7 Total Damage 1275 | . . 169 . . . . . . 286 . . . . 263 18 288 . 251 Kills 10 | . . 4 . . . . . . 3 . . . . 1 . 2 . . Allies Corrupted . | . . . . . . . . . . . . . . . . . . . Allies Melted 1 | . . . . . . . . . . . . . . . . . . 1 Intel | -11 -10 -10 -9 -9 -9 -8 -8 -8 -7 -7 -7 -7 -6 -6 -6 -6 -6 -5 ------- Run | Yrd Mat Min Mat Min Exi Min Mat Sto Fac Low Low Zio Pro Fac Low Low Dat Pro Active Infowar (turns) 1008 | 26 527 . 455 . . . . . . . . . . . . . . . Seismic 1008 | 26 527 . 455 . . . . . . . . . . . . . . . Robot Analysis Total 17 | . 4 . 2 . . . 1 4 2 . . . . 4 . . . . Derelict Logs Recovered 11 | . . 2 . . . . . . . 1 . 2 1 . 2 1 . 2 Drone Launches . | . . . . . . . . . . . . . . . . . . . Drone Recoveries . | . . . . . . . . . . . . . . . . . . . Exploration | -11 -10 -10 -9 -9 -9 -8 -8 -8 -7 -7 -7 -7 -6 -6 -6 -6 -6 -5 ------------- Run | Yrd Mat Min Mat Min Exi Min Mat Sto Fac Low Low Zio Pro Fac Low Low Dat Pro Turns Passed 22618 | 117 1231 573 2032 87 730 1136 2601 2090 4875 611 800 1520 478 1148 401 814 110 1264 Spaces Moved 16370 | 80 944 539 1214 68 693 916 1964 1031 3602 569 599 1298 354 678 321 577 90 833 Core 43 | 14 . . 2 . . . . . . . . . . . . . . 27 Treads . | . . . . . . . . . . . . . . . . . . . Legs 1300 | . . . 13 . . . . . . . . . . . . 391 90 806 Wheels 15027 | 66 944 539 1199 68 693 916 1964 1031 3602 569 599 1298 354 678 321 186 . . Hover . | . . . . . . . . . . . . . . . . . . . Flight . | . . . . . . . . . . . . . . . . . . . Fastest Speed 50 | 50 80 90 90 105 105 105 86 86 95 95 95 115 115 95 93 93 123 50 Average Speed 102 | 76 87 90 107 106 105 105 90 90 99 95 101 115 115 109 94 118 123 133 Slowest Speed 550 | 95 110 115 550 120 105 105 120 105 120 95 115 115 115 115 95 195 123 260 Overloaded Moves . | . . . . . . . . . . . . . . . . . . . Propulsion Burnouts . | . . . . . . . . . . . . . . . . . . . Robots Hopped . | . . . . . . . . . . . . . . . . . . . Potential Cave-ins . | . . . . . . . . . . . . . . . . . . . Cave-ins Triggered 1 | . . . . . . . . 1 . . . . . . . . . . Time Travels 1 | . . . . . . . . . . . . . . . . 1 . . Exploration Rate (%) 65 | 4 99 96 71 7 93 99 71 70 74 73 68 86 51 14 60 66 72 78 Regions Visited 18 Branch Regions 13 Pre-discovered Areas 5 | . . . . . . . . . . . . 3 . . 1 . 1 . Known Exits Taken 6 | . . . 1 . . . 1 1 1 . . . . 1 1 . . . Unknown Exits Taken 12 | 1 1 1 . 1 1 1 . . . 1 1 1 1 . . 1 1 . Scrap Searched 15 | . . 1 . . . 2 . . . 2 . 3 1 . . 2 . 4 Spaces Dug 24 | . . . . . . . 21 2 1 . . . . . . . . . Terrain Destroyed 124 | . . 8 . . . . 28 2 62 3 4 . 6 1 5 2 . 3 Melee 24 | . . . . . . . 21 2 1 . . . . . . . . . Projectile 41 | . . . . . . . 7 . 10 3 4 . 6 1 5 2 . 3 AOE 59 | . . 8 . . . . . . 51 . . . . . . . . . Terrain Rammed . | . . . . . . . . . . . . . . . . . . . Walls Destroyed . | . . . . . . . . . . . . . . . . . . . Machines Disabled . | . . . . . . . . . . . . . . . . . . . Actions | -11 -10 -10 -9 -9 -9 -8 -8 -8 -7 -7 -7 -7 -6 -6 -6 -6 -6 -5 --------- Run | Yrd Mat Min Mat Min Exi Min Mat Sto Fac Low Low Zio Pro Fac Low Low Dat Pro Total 20813 | 109 1168 600 1699 72 696 1058 2560 2083 4653 607 731 1317 400 1041 370 641 89 919 Wait 3150 | 4 76 30 286 . . 125 391 939 807 16 98 10 27 299 11 6 . 25 Move 16353 | 79 943 539 1213 67 692 915 1963 1030 3601 568 598 1297 353 677 320 576 89 833 Hop . | . . . . . . . . . . . . . . . . . . . Pick Up 124 | 7 16 4 18 . 2 1 18 13 19 . . 4 3 7 3 6 . 3 Fast Attach 103 | 7 5 . 20 . . . 10 10 20 . . 1 . 15 2 7 . 6 Attach 58 | . 6 1 7 . . . 10 8 6 . 3 . . 3 2 6 . 6 Detach 26 | . 1 . 1 . . . 5 5 3 . . . . 3 . 2 . 6 Swap 53 | 1 7 6 6 . . . 10 2 14 3 . 2 . 2 . . . . Drop 152 | . 18 7 25 . 2 1 23 15 33 2 . . 3 12 . 4 . 7 Fire 727 | 11 96 13 123 5 . 16 103 56 133 18 31 . 14 23 24 34 . 27 Melee 40 | . . . . . . . 27 3 1 . . 3 . . . . . 6 Ram 3 | . . . . . . . . 2 1 . . . . . . . . . Kick . | . . . . . . . . . . . . . . . . . . . Crush . | . . . . . . . . . . . . . . . . . . . Escape Stasis 15 | . . . . . . . . . 15 . . . . . . . . . Rewire 9 | . . . . . . . . . . . 1 . . . 8 . . . Trap . | . . . . . . . . . . . . . . . . . . . Miscellaneous . | . . . . . . . . . . . . . . . . . . . Route ------- -11/Scrapyard -10/Materials (discovered 6 exits: *Mat x3 / *Min x2 / [*Sub]) -10/Mines (discovered 2 exits: *Mat x2) -9/Materials (discovered 4 exits: *Mat x2 / *Min x2) -9/Mines -9/Exiles -8/Mines (discovered 2 exits: *Mat x2) -8/Materials (discovered 3 exits: *Fac x2 / *Sto) -8/Storage (discovered 2 exits: *Fac / *Rec) -7/Factory (discovered 4 exits: *Fac x2 / *Low x2) -7/Lower Caves -7/Lower Caves -7/Zion -6/Proximity Caves -6/Factory -6/Lower Caves -6/Lower Caves -6/Data Miner -5/Proximity Caves History --------- Turn | Location | Event 2 | -11/Scrapyard | Met Revision 17 8 | -11/Scrapyard | Discovered new exit (range 15) 118 | -11/Scrapyard | Entered Materials 306 | -10/Materials | Build established: Mutant 331 | -10/Materials | Discovered new exit (range 16) 587 | -10/Materials | Discovered new exit (range 9) 724 | -10/Materials | Core integrity fell below 50% 823 | -10/Materials | Discovered new exit (range 16) 1060 | -10/Materials | Discovered new exit (range 14) 1083 | -10/Materials | Discovered new exit (range 13) 1199 | -10/Materials | Discovered new exit (range 5) 1224 | -10/Materials | Core integrity fell below 20% 1349 | -10/Materials | Entered Mines 1353 | -10/Mines | Learned Materials interactive machine intel 1354 | -10/Mines | Assisted by bots powering up and referring to "LRC-V3" 1396 | -10/Mines | Joined a pair of Derelicts in attacking an 0b10 outpost 1489 | -10/Mines | Discovered new exit (range 13) 1637 | -10/Mines | Learned 4 Materials zone layouts 1753 | -10/Mines | Discovered new exit (range 7) 1769 | -10/Mines | Met a Derelict testing a Signal Generator 1778 | -10/Mines | Found Signal Generator 1806 | -10/Mines | Met a Derelict shopkeep closing up shop 1922 | -10/Mines | Entered Materials 1922 | -9/Materials | Evolved 2 slots: Utility x2 1924 | -9/Materials | Loaded intel: 18 interactive machine locations 2228 | -9/Materials | Build established: Scavenger-Mutant 2420 | -9/Materials | Discovered new exit (range 8) 2487 | -9/Materials | Lost 4 parts (3u1w) 2984 | -9/Materials | Repaired Lgt. Armor Plating 3018 | -9/Materials | Repaired Rnf. Ion Engine 3051 | -9/Materials | Repaired Beam Rifle 3089 | -9/Materials | Repaired Broken Beam Cannon 3105 | -9/Materials | Discovered new exit (range 13) 3338 | -9/Materials | Discovered new exit (range 15) 3472 | -9/Materials | Repaired Arm. Wheel 3497 | -9/Materials | Repaired Lgt. Armor Plating 3571 | -9/Materials | Identified exit to Mines 3686 | -9/Materials | Discovered new exit (range 15) 3913 | -9/Materials | Build established: Mutant 3954 | -9/Materials | Entered Mines 3972 | -9/Mines | Deemed a non-threat by the Exiles lab entrance 3973 | -9/Mines | Discovered new exit (range 5) 4001 | -9/Mines | Assembled infested the area 4041 | -9/Mines | Entered Exiles 4068 | -9/Exiles | Met 8R-AWN 4085 | -9/Exiles | Met EX-HEX 4138 | -9/Exiles | Met EX-DEC 4191 | -9/Exiles | Met EX-BIN 4207 | -9/Exiles | Aligned with FarCom system 4208 | -9/Exiles | Given EX-Vault access code 4233 | -9/Exiles | Opened EX-Vault 4310 | -9/Exiles | Found Chronowheel 4331 | -9/Exiles | Warned to stay clear of 0b10 Research branches 4409 | -9/Exiles | Visited The Gauntlet 4659 | -9/Exiles | Discovered new exit (range 10) 4771 | -9/Exiles | Left Exiles lab with Chronowheel 4771 | -9/Exiles | Entered Mines 5176 | -8/Mines | Found a Scrap Suit stashed away for nefarious purposes 5211 | -8/Mines | Discovered new exit (range 7) 5278 | -8/Mines | Discovered new exit (range 8) 5907 | -8/Mines | Entered Materials 5907 | -8/Materials | Evolved 2 slots: Propulsion x1, Utility x1 5946 | -8/Materials | Garrison activated, responded to threat 6227 | -8/Materials | Build established: Hacker-Mutant 6294 | -8/Materials | Central database locked down 6393 | -8/Materials | Discovered new exit (range 10) 6693 | -8/Materials | Lost 3 parts (1p1u1w) 6871 | -8/Materials | Identified exit to Storage 6994 | -8/Materials | Build established: Scavenger-Mutant 7612 | -8/Materials | Discovered new exit (range 6) 8293 | -8/Materials | Discovered new exit (range 4) 8336 | -8/Materials | Identified exit to Factory 8508 | -8/Materials | Entered Storage 8574 | -8/Storage | Repaired Arm. Wheel 8620 | -8/Storage | Build established: Hacker-Mutant 8886 | -8/Storage | Used back door to open Recycling access 8886 | -8/Storage | Discovered new exit (range 5) 8889 | -8/Storage | Identified exit to Recycling 9773 | -8/Storage | Repaired Adv. Beam Cannon 10007 | -8/Storage | Crushed by falling debris 10065 | -8/Storage | Core integrity fell below 50% 10257 | -8/Storage | Central database locked down 10286 | -8/Storage | Discovered exit to Factory (range 8) 10598 | -8/Storage | Entered Factory 10598 | -7/Factory | Evolved 2 slots: Utility x2 10643 | -7/Factory | Repaired Arm. Wheel 10717 | -7/Factory | Garrison activated, responded to threat 10852 | -7/Factory | Repaired Imp. Heat Sink? 10908 | -7/Factory | Repaired Arm. Wheel 11891 | -7/Factory | Fabricated H-55 Commando? 12051 | -7/Factory | Repaired Hvy. Ion Engine 12157 | -7/Factory | Discovered new exit (range 6) 12204 | -7/Factory | Identified exit to Lower Caves 12891 | -7/Factory | Repaired Arm. Wheel 13293 | -7/Factory | Discovered exit to Lower Caves (range 9) 13409 | -7/Factory | Discovered new exit (range 9) 13632 | -7/Factory | Central database locked down 14015 | -7/Factory | Repaired Imp. Heat Sink 14061 | -7/Factory | Repaired Arm. Huge Wheel 14457 | -7/Factory | Discovered new exit (range 5) 14598 | -7/Factory | First assault squad dispatched 14615 | -7/Factory | Fabricated Imp. Hacking Suite? 14652 | -7/Factory | Core integrity fell below 50% 15473 | -7/Factory | Entered Lower Caves 15782 | -7/Lower Caves | Learned Factory emergency access door positions 15843 | -7/Lower Caves | Attracted the attention of an 0b10 checkpoint 16061 | -7/Lower Caves | Discovered new exit (range 5) 16084 | -7/Lower Caves | Entered another Lower Caves area 16194 | -7/Lower Caves | Encountered a Warlord checkpoint 16264 | -7/Lower Caves | Attracted the attention of an 0b10 checkpoint 16339 | -7/Lower Caves | Discovered new exit (range 15) 16345 | -7/Lower Caves | Attracted the attention of an 0b10 outpost 16416 | -7/Lower Caves | Lost 3 parts (1n2u) 16884 | -7/Lower Caves | Entered Zion 16936 | -7/Zion | Discovered new exit (range 10) 17074 | -7/Zion | System corruption cleaned by Quarantine Array 17186 | -7/Zion | Found Prototype Hackware 17186 | -7/Zion | Identified Exp. Hacking Suite 17272 | -7/Zion | Visited the Megawrench Repair Shop 17272 | -7/Zion | Megawrench repaired 7 parts 17345 | -7/Zion | Found CR-A16's Pointy Stick 17497 | -7/Zion | Learned location of Warlord (-5) 17850 | -7/Zion | Given A8's code to call for help 17967 | -7/Zion | Given the Hacking Drone Bay 18117 | -7/Zion | Rebuked by Imprinter 18404 | -7/Zion | Entered Proximity Caves 18544 | -6/Proximity Caves | Learned Factory interactive machine intel 18869 | -6/Proximity Caves | Discovered new exit (range 10) 18882 | -6/Proximity Caves | Entered Factory 18882 | -6/Factory | Evolved 2 slots: Propulsion x1, Utility x1 18884 | -6/Factory | Loaded intel: 54 interactive machine locations 18937 | -6/Factory | Repaired Arm. Huge Wheel 19187 | -6/Factory | Build established: Wizard-Mutant 19604 | -6/Factory | Repaired Thermic Laser 19626 | -6/Factory | Repaired Hvy. Ion Cannon 19650 | -6/Factory | Repaired Arm. Huge Wheel 19723 | -6/Factory | Repaired Imp. Heat Sink 19746 | -6/Factory | Repaired Ion Cannon 19845 | -6/Factory | Fabricated Imp. System Shield? 20014 | -6/Factory | Discovered new exit (range 3) 20025 | -6/Factory | Identified exit to Lower Caves 20030 | -6/Factory | Entered Lower Caves 20030 | -6/Lower Caves | Accompanied by 1 ally 20031 | -6/Lower Caves | Encountered a Warlord checkpoint 20043 | -6/Lower Caves | Identified exit to Lower Caves 20207 | -6/Lower Caves | Attracted the attention of an 0b10 outpost 20355 | -6/Lower Caves | Attracted the attention of an 0b10 checkpoint 20431 | -6/Lower Caves | Entered another Lower Caves area 20431 | -6/Lower Caves | Accompanied by 2 allies 20452 | -6/Lower Caves | Learned 8 Factory zone layouts 20472 | -6/Lower Caves | Attracted the attention of an 0b10 checkpoint 20473 | -6/Lower Caves | Activated Chronowheel 20473 | -6/Lower Caves | Spacetime reconverged on an earlier point 20581 | -6/Lower Caves | Found DCF Scrap (15 items) 20755 | -6/Lower Caves | Build established: Hacker-Mutant 20873 | -6/Lower Caves | Encountered a Warlord checkpoint 21103 | -6/Lower Caves | Discovered new exit (range 15) 21245 | -6/Lower Caves | Entered Data Miner 21245 | -6/Data Miner | Discovered new exit (range 6) 21269 | -6/Data Miner | Met Data Miner 21306 | -6/Data Miner | Learned location of Section 7 (-2) 21306 | -6/Data Miner | Acquired the access code to Warlord's prototype stash 21323 | -6/Data Miner | Received God Mode back door access code from Data Miner 21355 | -6/Data Miner | Entered Proximity Caves 22038 | -5/Proximity Caves | Build established: Scavenger-Mutant 22315 | -5/Proximity Caves | Core integrity fell below 50% 22335 | -5/Proximity Caves | Lost 9 parts (3n4u2w) 22481 | -5/Proximity Caves | Spotted B-75 Beast 22580 | -5/Proximity Caves | Escorted by Enhanced Grunt 22603 | -5/Proximity Caves | Core integrity fell below 20% 22619 | -5/Proximity Caves | Destroyed by B-75 Beast with Heavy Plasma Cannon Last Messages --------------- 22572_ Dropped Autogun. 22572_ Dropped Mak. Spear. 22573_ Dropped Lgt. Fission Core. 22574_ Dropped Med. Storage Unit. 22575_ Dropped Hvy. Laser. 22576_ Carbon-fiber Leg destroyed. 22579_ Enhanced Grunt knocked back. 22580_ Enhanced Grunt: "Protecting LRC-V3." 22587_ Acquired 5 matter. 22591_ Acquired CR-A16's Pointy Stick. 22593_ Acquired Mak. Spear. 22596_ Acquired 5 matter. 22599_ Mak. Spear follow-up attack on B-75 Beast. 22602_ Knocked back. 22602_ Imp. System Shield destroyed. 22603_ Mak. Spear follow-up attack on B-75 Beast. 22606_ B-75 Beast suffers critical hit (Impale). 22608_ Knocked back. Map ----- +----------------------------------------------------+ | | | ?????????????????????????????????????????????????? | | ?????????????????????????????????????????????????? | | ?????????????????????????????????????????????????? | | ?????????????????????????????????????????????????? | | ?????????????????????????????????????????????????? | | ?????????????????????????????????????????????????? | | ?????????????????????????????????????????????????? | | ?????????????????????????????????????????????????? | | ?????????????????????????????????????????????????? | | ?????????????????????????????????????????????????? | | ?????????????????????????????????????????????????? | | ?????????????????????????????????????????????????? | | ?????????????????????????????????????????????????? | | ?????????????????????????????????????????????????? | | ?????????????????????????????????????????????????? | | ???????????????###???????????????###?????????####? | | ??########????## ##????????????## #????????## ## | | ### ###??# ##?????????### #???????## # | | # #?## #?????????# #???????# ## | | # #?# %########### ##??????## ##? | | ?# #??## *[! !% #??###### % #?? | | ??# #???### #;%;;#%#### ##?# #?? | | ??## #?????# ##;;;[;### #?# ## ####?? | | ???## ###???# BB =% ### ## #????? | | ????## ##??# BB@ # ## #????? | | ?????# ############## % ;## ## ##????? | | ?????#### ##????????## ;;; ## #?????? | | ###?????## #####????##### % #?????? | | ######### #????# ######?????? | | ### ### #????# """" #??????????? | | ####?## #????# """ " #?????? ##? | | ## #?????## ###### """ #??? #? | | ?##### ##??????# ## """ """ #? | | ???### ##??????## # """""" #? | | ??## ##??????# "" #? | | ### #??????# # #? | | #??????# #### ## #? | | ######?## ##?# #### ####? | | ### ### #### #??# #??? | | ## #### #???# ?? | | ## #????# ###? | | ## ## ###????? ##??? | | " " " ####### ## #???????? #???? | | """""" ##????# ## #?????????#???? | | """"""" #????# ## ##??####??????? | | ### #???# #### #??????? | | " " " ##?## #???#### ## #??????? | | """"" #########?????## ##?????? | | """"" # # #??????## ##????? | +----------------------------------------------------+ Best States ------------- Heat Dissipation 56 Energy Generation 19 Energy Capacity 315 Matter Stores 300 Matter Capacity 300 Sight Range 16 Terrain Scan Density 10 Corruption Containment 8 Armor Coverage 300 Resistance: TH 25 Evasion (%) 55 Recoil Reduction 1 Particle Charging 15 Offensive Hacking 48 Defensive Hacking 24 Item Schematics ----------------- Propulsion Shielding | -9/Materials | Hacked Imp. Targeting Computer | -9/Materials | Hacked Lgt. Armor Plating | -9/Materials | Scanalyzed Beam Cannon | -9/Materials | Scanalyzed Beam Rifle | -9/Materials | Scanalyzed Imp. Heat Sink | -8/Materials | Scanalyzed Adv. Beam Cannon | -8/Materials | Scanalyzed Imp. Datajack | -8/Materials | Scanalyzed Flail | -8/Materials | Scanalyzed System Shield | -8/Storage | Hacked Hacking Suite | -8/Storage | Hacked Hrd. Light Armor Plating | -7/Factory | Scanalyzed Imp. Hacking Suite | -7/Factory | Hacked Arm. Huge Wheel | -7/Factory | Hacked Arm. Wheel | -7/Factory | Hacked Proton Cannon | -7/Zion | Archive Armor Integrity Analyzer | -7/Zion | Archive Adv. Drone Bay | -7/Zion | Archive Core Analyzer | -7/Zion | Archive Force Field | -7/Zion | Archive Hvy. Ion Cannon | -7/Zion | Archive Hpw. Shock Rifle | -7/Zion | Archive Hvy. Rocket Launcher | -7/Zion | Archive Imp. Medium Treads | -7/Zion | Archive Spear | -7/Zion | Archive Adv. Field Recycling Unit | -7/Zion | Archive Drone Bay | -7/Zion | Archive Imp. Titanium Leg | -7/Zion | Archive Lightning Gun | -7/Zion | Archive Imp. Trap Scanner | -7/Zion | Archive Lrn. Phase Cannon | -7/Zion | Archive Imp. System Shield | -6/Factory | Hacked Cesium-ion Thruster | -6/Factory | Hacked Combat Drone Bay | -6/Data Miner | Free Lgt. Regenerative Plating | -6/Data Miner | Free Cld. Nuclear Pulse Thruster | -6/Data Miner | Free Adv. EM Disruption Field | -6/Data Miner | Free Hvy. Proton Cannon | -6/Data Miner | Free Adv. Medium Treads | -6/Data Miner | Free Adv. Power Amplifier | -6/Data Miner | Free HERF Cannon | -6/Data Miner | Free Graphene Brace | -6/Data Miner | Free Robot Schematics ------------------ K-01 Serf | -7/Zion | Archive L-41 Fighter | -7/Zion | Archive G-47 Trooper | -7/Zion | Archive R-10 Processor | -6/Data Miner | Free Y-64 Sentinel | -6/Data Miner | Free Fabricated ------------ H-55 Commando | x2 | -7/Factory | Preloaded Imp. Hacking Suite | x1 | -7/Factory Imp. System Shield | x1 | -6/Factory Repaired ---------- Lgt. Armor Plating | 7% | -9/Materials Rnf. Ion Engine | 27% | -9/Materials Beam Rifle | 37% | -9/Materials Beam Cannon | 56% | -9/Materials | Broken Arm. Wheel | 28% | -9/Materials Lgt. Armor Plating | 61% | -9/Materials Arm. Wheel | 27% | -8/Storage Adv. Beam Cannon | 73% | -8/Storage Arm. Wheel | 2% | -7/Factory Imp. Heat Sink | 17% | -7/Factory Arm. Wheel | 31% | -7/Factory Hvy. Ion Engine | 17% | -7/Factory Arm. Wheel | 56% | -7/Factory Imp. Heat Sink | 22% | -7/Factory Arm. Huge Wheel | 74% | -7/Factory Arm. Huge Wheel | 52% | -6/Factory Thermic Laser | 35% | -6/Factory Hvy. Ion Cannon | 22% | -6/Factory Arm. Huge Wheel | 70% | -6/Factory Imp. Heat Sink | 62% | -6/Factory Ion Cannon | 61% | -6/Factory Alien Tech Used ----------------- None Achievements -------------- None Challenges ------------ None Game ------ Seed SeismicMeleeDissipator Manual? 0 Play Time 02:56:00 Cumulative 231.1 hours Start 2025.06.22 @ 18:03:31 End 2025.06.23 @ 18:47:32 Sessions 5 Manual Loads 0 Difficulty Rogue Special Mode None Game No. 220 Rogue 220 Adventurer 0 Explorer 0 Win Type - Total 1 Types 1/0/0/0/0/0/0/0/0/0 Lore% 58 Gallery% 60 Achievement% 47 Wizard Run 0 Options --------- Layout 2 ASCII 1 Keyboard 1 Movement Numpad Keybinds 0 Fullscreen 2 Font 32/TamsynBold Map View 50x44 Zoom Use 0% Tactical HUD 1 Map Filters NONE Filters NONE Steam 1 RUN: a4429014-d562-4ba9-82a8-ecf7de77bacc